fUST/lending_fUST_20241223
["ID","MTS","AMOUNT","RATE_DAILY","PERIOD"]
[346400176,1734940256047,-502.33794528,0.00013972,2]
[346400178,1734940256056,-539.76264124,0.00013972,2]
[346400180,1734940256066,-502.04092753,0.00013972,2]
[346400182,1734940256075,-500.0,0.00013972,2]
[346400184,1734940256084,-500.0,0.00013972,2]
[346400186,1734940256093,-500.0,0.00013972,2]
[346400188,1734940256102,-168.0,0.00013972,2]
[346400190,1734940256111,-502.71200867,0.00013972,2]
[346400192,1734940256121,-500.0,0.00013972,2]
[346400194,1734940256131,-502.97086065,0.00013972,2]
[346400196,1734940256140,-735.0,0.00013972,2]
[346400198,1734940256149,-500.0,0.00013972,2]
[346400200,1734940256158,-501.74159723,0.00013972,2]
[346400202,1734940256168,-502.84260476,0.00013972,2]
[346400204,1734940256177,-500.0,0.00013972,2]
[346400206,1734940256186,-500.0,0.00013972,2]
[346400208,1734940256195,-502.93390904,0.00013972,2]
[346400210,1734940256204,-500.0,0.00013972,2]
[346400212,1734940256213,-1347.36,0.00013972,2]
[346400214,1734940256222,-501.2828506,0.00013972,2]
[346400216,1734940256231,-524.61157467,0.00013972,2]
[346400218,1734940256240,-500.0,0.00013972,2]
[346400220,1734940256249,-501.32234962,0.00013972,2]
[346400222,1734940256258,-500.0,0.00013972,2]
[346400224,1734940256266,-500.0,0.00013972,2]
[346400226,1734940256275,-502.05924064,0.00013972,2]
[346400228,1734940256285,-500.0,0.00013972,2]
[346400230,1734940256294,-500.0,0.00013972,2]
[346400232,1734940256303,-501.49220622,0.00013972,2]
[346400234,1734940256312,-501.56520489,0.00013972,2]
[346400236,1734940256322,-500.0,0.00013972,2]
[346400238,1734940256330,-509.64507756,0.00013972,2]
[346400239,1734940256340,-513.7883702,0.00013972,2]
[346400242,1734940256351,-500.0,0.00013972,2]
[346400243,1734940256361,-500.0,0.00013972,2]
[346400245,1734940256370,-490.52015036,0.00013972,2]
[346400248,1734940256379,-518.31767556,0.00013972,2]
[346400250,1734940256389,-500.97591879,0.00013972,2]
[346400252,1734940256398,-500.0,0.00013972,2]
[346400254,1734940256409,-501.22914315,0.00013972,2]
[346400256,1734940256418,-502.56751063,0.00013972,2]
[346400257,1734940256427,-502.24823652,0.00013972,2]
[346400260,1734940256437,-233.49682367,0.00013972,2]
[346400262,1734940256446,-500.0,0.00013972,2]
[346400264,1734940256455,-500.0,0.00013972,2]
[346400266,1734940256464,-279.91782451,0.00013972,2]
[346400268,1734940256473,-501.67287311,0.00013972,2]
[346400270,1734940256482,-500.0,0.00013972,2]
[346400272,1734940256492,-501.22841613,0.00013972,2]
[346400274,1734940256501,-501.37884012,0.00013972,2]
[346400276,1734940256510,-631.0059852,0.00013972,2]
[346400278,1734940256519,-501.9133377,0.00013972,2]
[346400280,1734940256528,-500.0,0.00013972,2]
[346400282,1734940256537,-623.52,0.00013972,2]
[346400283,1734940256547,-500.0,0.00013972,2]
[346400285,1734940256556,-483.66280595,0.00013972,2]
[346400287,1734940256565,-500.0,0.00013972,2]
[346400289,1734940256574,-500.0,0.00013972,2]
[346400291,1734940256583,-156.3130062,0.00013972,2]
[346400293,1734940256592,-500.0,0.00013972,2]
[346400295,1734940256602,-503.48545147,0.00013972,2]
[346400297,1734940256611,-531.7511274,0.00013972,2]
[346400300,1734940256620,-501.60499861,0.00013972,2]
[346400301,1734940256629,-500.0,0.00013972,2]
[346400304,1734940256639,-521.36,0.00013972,2]
[346400306,1734940256649,-1114.01,0.00013972,2]
[346400308,1734940256658,-500.0,0.00013972,2]
[346400310,1734940256667,-181.06002023,0.00013972,2]
[346400312,1734940256676,-502.66409176,0.00013972,2]
[346400314,1734940256685,-509.76554336,0.00013972,2]
[346400316,1734940256693,-500.0,0.00013972,2]
[346400318,1734940256703,-504.20609954,0.00013972,2]
[346400320,1734940256712,-527.66,0.00013972,2]
[346400322,1734940256721,-501.1737194,0.00013972,2]
[346400324,1734940256730,-501.62184086,0.00013972,2]
[346400326,1734940256739,-500.0,0.00013972,2]
[346400328,1734940256749,-500.0,0.00013972,2]
[346400330,1734940256758,-500.0,0.00013972,2]
[346400332,1734940256767,-500.96112433,0.00013972,2]
[346400334,1734940256778,-503.376925,0.00013972,2]
[346400336,1734940256787,-502.99782573,0.00013972,2]
[346400338,1734940256796,-500.0,0.00013972,2]
[346400340,1734940256805,-500.0,0.00013972,2]
[346400342,1734940256815,-626.8,0.00013972,2]
[346400344,1734940256825,-500.0,0.00013972,2]
[346400346,1734940256833,-500.0,0.00013972,2]
[346400348,1734940256842,-407.06688375,0.00013972,2]
[346400350,1734940256852,-504.37309669,0.00013972,2]
[346400352,1734940256861,-500.0,0.00013972,2]
[346400354,1734940256870,-1009.35,0.00013972,2]
[346400356,1734940256880,-504.09148116,0.00013972,2]
[346400358,1734940256889,-500.0,0.00013972,2]
[346400360,1734940256898,-500.0,0.00013972,2]
[346400362,1734940256907,-500.0,0.00013972,2]
[346400364,1734940256916,-500.0,0.00013972,2]
[346400366,1734940256926,-500.0,0.00013972,2]
[346400368,1734940256935,-500.0,0.00013972,2]
[346400370,1734940256944,-500.0,0.00013972,2]
[346400372,1734940256953,-500.0,0.00013972,2]
[346400374,1734940256963,-500.0,0.00013972,2]
[346400376,1734940256972,-502.09270692,0.00013972,2]
[346400378,1734940256981,-500.0,0.00013972,2]
[346400380,1734940256990,-500.0,0.00013972,2]
[346400382,1734940257000,-500.0,0.00013972,2]
[346400384,1734940257009,-503.01522744,0.00013972,2]
[346400386,1734940257018,-500.0,0.00013972,2]
[346400388,1734940257028,-843.24,0.00013972,2]
[346400390,1734940257037,-1104.0766749,0.00013972,2]
[346400392,1734940257046,-569.17,0.00013972,2]
[346400394,1734940257056,-500.0,0.00013972,2]
[346400396,1734940257065,-501.96367711,0.00013972,2]
[346400398,1734940257074,-503.17791094,0.00013972,2]
[346400400,1734940257083,-502.01820757,0.00013972,2]
[346400402,1734940257093,-505.48217262,0.00013972,2]
[346400404,1734940257102,-502.13361226,0.00013972,2]
[346400406,1734940257112,-935.01,0.00013972,2]
[346400408,1734940257122,-502.62552808,0.00013972,2]
[346400410,1734940257131,-501.33534608,0.00013972,2]
[346400412,1734940257140,-500.0,0.00013972,2]
[346400414,1734940257149,-500.0,0.00013972,2]
[346400416,1734940257158,-503.7441256,0.00013972,2]
[346400418,1734940257167,-501.6016208,0.00013972,2]
[346400420,1734940257176,-500.0,0.00013972,2]
[346400422,1734940257186,-507.64432595,0.00013972,2]
[346400424,1734940257195,-500.0,0.00013972,2]
[346400426,1734940257205,-500.0,0.00013972,2]
[346400428,1734940257214,-500.0,0.00013972,2]
[346400430,1734940257223,-500.0,0.00013972,2]
[346400432,1734940257232,-501.73555888,0.00013972,2]
[346400434,1734940257241,-500.0,0.00013972,2]
[346400436,1734940257250,-501.41028101,0.00013972,2]
[346400438,1734940257259,-500.0,0.00013972,2]
[346400440,1734940257268,-502.13062488,0.00013972,2]
[346400442,1734940257278,-500.0,0.00013972,2]
[346400444,1734940257287,-500.0,0.00013972,2]
[346400446,1734940257296,-500.0,0.00013972,2]
[346400448,1734940257305,-500.0,0.00013972,2]
[346400450,1734940257314,-500.0,0.00013972,2]
[346400452,1734940257323,-500.0,0.00013972,2]
[346400454,1734940257332,-500.0,0.00013972,2]
[346400456,1734940257346,-503.44842212,0.00013972,2]
[346400458,1734940257356,-555.23,0.00013972,2]
[346400460,1734940257366,-500.0,0.00013972,2]
[346400462,1734940257375,-501.71904092,0.00013972,2]
[346400464,1734940257384,-500.0,0.00013972,2]
[346400466,1734940257394,-581.12,0.00013972,2]
[346400468,1734940257404,-624.14,0.00013972,2]
[346400470,1734940257414,-1862.43,0.00013972,2]
[346400472,1734940257423,-500.0,0.00013972,2]
[346400474,1734940257432,-725.11,0.00013972,2]
[346400476,1734940257441,-500.27985972,0.00013972,2]
[346400478,1734940257451,-500.0,0.00013972,2]
[346400481,1734940257460,-500.0,0.00013972,2]
[346400483,1734940257469,-504.42272528,0.00013972,2]
[346400485,1734940257478,-500.0,0.00013972,2]
[346400487,1734940257488,-500.0,0.00013972,2]
[346400489,1734940257497,-502.84700134,0.00013972,2]
[346400491,1734940257506,-501.27422602,0.00013972,2]
[346400493,1734940257516,-1682.93,0.00013972,2]
[346400495,1734940257527,-501.54057452,0.00013972,2]
[346400497,1734940257536,-504.09182178,0.00013972,2]
[346400499,1734940257545,-502.06369424,0.00013972,2]
[346400501,1734940257554,-501.90485537,0.00013972,2]
[346400503,1734940257563,-600.18000304,0.00013972,2]
[346400505,1734940257573,-504.34988501,0.00013972,2]
[346400507,1734940257582,-500.0,0.00013972,2]
[346400509,1734940257591,-502.57106078,0.00013972,2]
[346400511,1734940257601,-500.0,0.00013972,2]
[346400513,1734940257609,-500.0,0.00013972,2]
[346400515,1734940257619,-500.0,0.00013972,2]
[346400517,1734940257629,-500.0,0.00013972,2]
[346400519,1734940257638,-500.0,0.00013972,2]
[346400521,1734940257647,-571.86378003,0.00013972,2]
[346400523,1734940257656,-500.0,0.00013972,2]
[346400525,1734940257666,-500.0,0.00013972,2]
[346400527,1734940257675,-500.0,0.00013972,2]
[346400529,1734940257684,-500.0,0.00013972,2]
[346400531,1734940257694,-502.15492504,0.00013972,2]
[346400533,1734940257703,-575.80101755,0.00013972,2]
[346400535,1734940257713,-502.76721073,0.00013972,2]
[346400537,1734940257722,-500.0,0.00013972,2]
[346400539,1734940257731,-501.73828817,0.00013972,2]
[346400541,1734940257740,-500.0,0.00013972,2]
[346400543,1734940257748,-500.0,0.00013972,2]
[346400545,1734940257757,-1488.55,0.00013972,2]
[346400547,1734940257766,-602.33,0.00013972,2]
[346400549,1734940257776,-502.79475437,0.00013972,2]
[346400551,1734940257785,-500.0,0.00013972,2]
[346400553,1734940257794,-259.22838164,0.00013972,2]
[346400555,1734940257803,-500.0,0.00013972,2]
[346400557,1734940257813,-500.0,0.00013972,2]
[346400559,1734940257822,-164.09686466,0.00013972,2]
[346400561,1734940257832,-500.0,0.00013972,2]
[346400563,1734940257842,-500.0,0.00013972,2]
[346400565,1734940257851,-500.0,0.00013972,2]
[346400567,1734940257861,-500.0,0.00013972,2]
[346400569,1734940257870,-500.0,0.00013972,2]
[346400571,1734940257879,-2352.95,0.00013972,2]
[346400573,1734940257888,-500.0,0.00013972,2]
[346400576,1734940257898,-500.0,0.00013972,2]
[346400578,1734940257907,-500.0,0.00013972,2]
[346400580,1734940257916,-502.37484368,0.00013972,2]
[346400582,1734940257925,-804.29,0.00013972,2]
[346400584,1734940257934,-501.00262929,0.00013972,2]
[346400586,1734940257944,-17230.11,0.00013972,2]
[346400587,1734940257953,-53774.81,0.00013972,2]
[346400589,1734940257963,-1685.33,0.00013972,2]
[346400592,1734940257972,-500.0,0.00013972,2]
[346400594,1734940257982,-556.91341405,0.00013972,2]
[346400595,1734940257991,-363.5719537,0.00013972,2]
[346400598,1734940258002,-500.0,0.00013972,2]
[346400600,1734940258011,-500.0,0.00013972,2]
[346400602,1734940258020,-613.7,0.00013972,2]
[346400604,1734940258030,-500.0,0.00013972,2]
[346400606,1734940258039,-502.43764936,0.00013972,2]
[346400607,1734940258047,-1583.6,0.00013972,2]
[346400609,1734940258056,-501.20143861,0.00013972,2]
[346400611,1734940258066,-504.10523663,0.00013972,2]
[346400613,1734940258074,-501.971378,0.00013972,2]
[346400615,1734940258084,-500.0,0.00013972,2]
[346400618,1734940258094,-500.0,0.00013972,2]
[346400620,1734940258103,-501.81324936,0.00013972,2]
[346400622,1734940258111,-503.00659576,0.00013972,2]
[346400624,1734940258120,-502.5126296,0.00013972,2]
[346400626,1734940258130,-500.0,0.00013972,2]
[346400628,1734940258139,-498.40616086,0.00013972,2]
[346400630,1734940258148,-502.15974139,0.00013972,2]
[346400632,1734940258158,-762.32,0.00013972,2]
[346400634,1734940258167,-501.21254976,0.00013972,2]
[346400636,1734940258176,-5944.93,0.00013972,2]
[346400638,1734940258186,-500.0,0.00013972,2]
[346400640,1734940258195,-500.0,0.00013972,2]
[346400642,1734940258204,-966.94,0.00013972,2]
[346400644,1734940258213,-504.16438995,0.00013972,2]
[346400645,1734940258222,-500.0,0.00013972,2]
[346400646,1734940258230,-501.20185925,0.00013972,2]
[346400647,1734940258239,-500.0,0.00013972,2]
[346400648,1734940258248,-500.0,0.00013972,2]
[346400649,1734940258257,-5846.89,0.00013972,2]
[346400650,1734940258266,-500.0,0.00013972,2]
[346400651,1734940258275,-500.0,0.00013972,2]
[346400652,1734940258284,-500.0,0.00013972,2]
[346400653,1734940258293,-500.0,0.00013972,2]
[346400660,1734940258410,-500.0,0.00013972,2]
[346400662,1734940258419,-500.0,0.00013972,2]
[346400664,1734940258429,-504.11051447,0.00013972,2]
[346400666,1734940258438,-500.0,0.00013972,2]
[346400668,1734940258447,-632.03125486,0.00013972,2]
[346400670,1734940258456,-500.0,0.00013972,2]
[346400672,1734940258465,-501.43982142,0.00013972,2]
[346400674,1734940258475,-500.0,0.00013972,2]
[346400676,1734940258485,-500.0,0.00013972,2]
[346400678,1734940258494,-500.0,0.00013972,2]
[346400680,1734940258503,-500.0,0.00013972,2]
[346400682,1734940258512,-502.04045473,0.00013972,2]
[346400684,1734940258521,-500.0,0.00013972,2]
[346400686,1734940258531,-6054.3,0.00013972,2]
[346400688,1734940258540,-500.0,0.00013972,2]
[346400690,1734940258549,-500.0,0.00013972,2]
[346400692,1734940258559,-682.37,0.00013972,2]
[346400694,1734940258569,-501.44466842,0.00013972,2]
[346400696,1734940258578,-500.0,0.00013972,2]
[346400698,1734940258587,-500.0,0.00013972,2]
[346400700,1734940258596,-500.0,0.00013972,2]
[346400701,1734940258606,-502.14130472,0.00013972,2]
[346400703,1734940258615,-500.0,0.00013972,2]
[346400705,1734940258624,-500.0,0.00013972,2]
[346400708,1734940258634,-500.0,0.00013972,2]
[346400710,1734940258643,-503.79362735,0.00013972,2]
[346400712,1734940258653,-500.0,0.00013972,2]
[346400714,1734940258661,-500.0,0.00013972,2]
[346400716,1734940258670,-500.0,0.00013972,2]
[346400718,1734940258680,-500.0,0.00013972,2]
[346400720,1734940258689,-500.0,0.00013972,2]
[346400722,1734940258698,-500.0,0.00013972,2]
[346400724,1734940258707,-503.45301184,0.00013972,2]
[346400726,1734940258717,-500.0,0.00013972,2]
[346400728,1734940258727,-585.26895832,0.00013972,2]
[346400730,1734940258736,-500.0,0.00013972,2]
[346400732,1734940258744,-500.0,0.00013972,2]
[346400734,1734940258754,-867.05,0.00013972,2]
[346400735,1734940258763,-500.0,0.00013972,2]
[346400737,1734940258772,-502.10197195,0.00013972,2]
[346400739,1734940258783,-500.0,0.00013972,2]
[346400741,1734940258792,-500.0,0.00013972,2]
[346400743,1734940258801,-500.0,0.00013972,2]
[346400746,1734940258810,-501.08002506,0.00013972,2]
[346400748,1734940258820,-500.0,0.00013972,2]
[346400749,1734940258829,-502.63721505,0.00013972,2]
[346400751,1734940258839,-500.0,0.00013972,2]
[346400753,1734940258848,-500.0,0.00013972,2]
[346400755,1734940258857,-1815.43,0.00013972,2]
[346400758,1734940258867,-502.33333077,0.00013972,2]
[346400760,1734940258877,-11074.19,0.00013972,2]
[346400762,1734940258886,-504.40141099,0.00013972,2]
[346400764,1734940258895,-500.0,0.00013972,2]
[346400766,1734940258905,-500.0,0.00013972,2]
[346400768,1734940258914,-500.0,0.00013972,2]
[346400770,1734940258923,-500.0,0.00013972,2]
[346400772,1734940258933,-695.08,0.00013972,2]
[346400774,1734940258943,-500.0,0.00013972,2]
[346400776,1734940258952,-500.0,0.00013972,2]
[346400777,1734940258961,-500.0,0.00013972,2]
[346400780,1734940258971,-500.0,0.00013972,2]
[346400782,1734940258981,-500.0,0.00013972,2]
[346400784,1734940258990,-500.0,0.00013972,2]
[346400786,1734940259000,-1482.79,0.00013972,2]
[346400787,1734940259009,-500.0,0.00013972,2]
[346400789,1734940259018,-501.8991332,0.00013972,2]
[346400792,1734940259028,-500.0,0.00013972,2]
[346400794,1734940259038,-4938.41,0.00013972,2]
[346400796,1734940259047,-503.09686939,0.00013972,2]
[346400798,1734940259056,-504.77730023,0.00013972,2]
[346400800,1734940259065,-500.0,0.00013972,2]
[346400802,1734940259074,-890.52,0.00013972,2]
[346400804,1734940259084,-500.0,0.00013972,2]
[346400806,1734940259094,-1090.52,0.00013972,2]
[346400808,1734940259103,-1763.61,0.00013972,2]
[346400810,1734940259112,-503.95773327,0.00013972,2]
[346400812,1734940259121,-496.9703404,0.00013972,2]
[346400814,1734940259131,-500.0,0.00013972,2]
[346400815,1734940259139,-500.0,0.00013972,2]
[346400817,1734940259149,-500.0,0.00013972,2]
[346400820,1734940259158,-502.53376424,0.00013972,2]
[346400822,1734940259167,-505.32981907,0.00013972,2]
[346400824,1734940259176,-500.0,0.00013972,2]
[346400825,1734940259185,-502.2100743,0.00013972,2]
[346400827,1734940259194,-784.51,0.00013972,2]
[346400829,1734940259203,-500.0,0.00013972,2]
[346400831,1734940259212,-503.45643319,0.00013972,2]
[346400833,1734940259221,-502.66114906,0.00013972,2]
[346400835,1734940259230,-500.0,0.00013972,2]
[346400837,1734940259239,-1181.45,0.00013972,2]
[346400839,1734940259249,-671.15,0.00013972,2]
[346400841,1734940259258,-500.0,0.00013972,2]
[346400843,1734940259267,-1107.75,0.00013972,2]
[346400845,1734940259276,-608.11,0.00013972,2]
[346400848,1734940259286,-3623.51,0.00013972,2]
[346400849,1734940259295,-500.0,0.00013972,2]
[346400852,1734940259304,-500.0,0.00013972,2]
[346400853,1734940259313,-244.77120987,0.00013972,2]
[346400856,1734940259322,-500.0,0.00013972,2]
[346400858,1734940259332,-500.0,0.00013972,2]
[346400859,1734940259342,-503.58616805,0.00013972,2]
[346400861,1734940259353,-500.0,0.00013972,2]
[346400864,1734940259363,-500.0,0.00013972,2]
[346400866,1734940259372,-2349.04,0.00013972,2]
[346400868,1734940259383,-500.0,0.00013972,2]
[346400870,1734940259392,-1677.64,0.00013972,2]
[346400872,1734940259401,-500.0,0.00013972,2]
[346400874,1734940259410,-837.93,0.00013972,2]
[346400876,1734940259421,-483.76016164,0.00013972,2]
[346400878,1734940259430,-915.72,0.00013972,2]
[346400880,1734940259439,-500.0,0.00013972,2]
[346400882,1734940259448,-501.19153632,0.00013972,2]
[346400884,1734940259457,-500.0,0.00013972,2]
[346400886,1734940259466,-500.0,0.00013972,2]
[346400888,1734940259475,-500.0,0.00013972,2]
[346400890,1734940259484,-501.7123401,0.00013972,2]
[346400892,1734940259493,-502.86452252,0.00013972,2]
[346400894,1734940259502,-2099.19,0.00013972,2]
[346400896,1734940259511,-500.34987306,0.00013972,2]
[346400898,1734940259520,-500.0,0.00013972,2]
[346400900,1734940259529,-500.0,0.00013972,2]
[346400901,1734940259538,-500.0,0.00013973,2]
[346400903,1734940259547,-500.0,0.00013973,2]
[346400906,1734940259557,-500.0,0.00013973,2]
[346400907,1734940259566,-500.0,0.00013973,2]
[346400909,1734940259575,-500.0,0.00013973,2]
[346400911,1734940259584,-500.0,0.00013973,2]
[346400913,1734940259593,-500.0,0.00013973,2]
[346400915,1734940259602,-500.0,0.00013973,2]
[346400917,1734940259611,-500.0,0.00013973,2]
[346400920,1734940259620,-500.0,0.00013973,2]
[346400921,1734940259629,-444.10044547,0.00013973,2]
[346400923,1734940259638,-500.0,0.00013973,2]
[346400925,1734940259647,-500.0,0.00013973,2]
[346400927,1734940259656,-500.0,0.00013973,2]
[346400929,1734940259665,-500.0,0.00013973,2]
[346400931,1734940259674,-500.0,0.00013973,2]
[346400934,1734940259684,-328.27037836,0.00013973,2]
[346400936,1734940259693,-500.0,0.00013973,2]
[346400937,1734940259702,-500.0,0.00013973,2]
[346400939,1734940259711,-376.30541694,0.00013973,2]
[346400942,1734940259720,-500.0,0.00013973,2]
[346400943,1734940259729,-500.0,0.00013973,2]
[346400945,1734940259738,-504.59043511,0.00013973,2]
[346400947,1734940259747,-217.38835136,0.00013973,2]
[346400949,1734940259757,-500.0,0.00013973,2]
[346400951,1734940259765,-261.28901596,0.00013973,2]
[346400953,1734940259775,-250.98137127,0.00013973,2]
[346400955,1734940259785,-174.64002139,0.00013973,2]
[346400957,1734940259794,-500.0,0.00013973,2]
[346400959,1734940259803,-607.24451011,0.00013973,2]
[346400961,1734940259812,-500.0,0.00013973,2]
[346400964,1734940259822,-366.67635807,0.00013973,2]
[346400966,1734940259831,-161.81279141,0.00013973,2]
[346400968,1734940259841,-581.72286288,0.00013973,2]
[346400969,1734940259850,-610.79680465,0.00013973,2]
[346400972,1734940259859,-574.02926145,0.00013973,2]
[346400974,1734940259868,-160.44889301,0.00013973,2]
[346400975,1734940259878,-500.0,0.00013973,2]
[346400977,1734940259887,-400.0,0.00013973,2]
[346400980,1734940259897,-1550.86306505,0.0001398,2]
[346400982,1734940259906,-6153.5777313,0.0001399,2]
[346400984,1734940259916,-1016608.25132757,0.00014,2]
[346401000,1734940260797,-500.0,0.00013698,2]
[346401001,1734940260806,-500.0,0.00013698,2]
[346401002,1734940260816,-503.54533713,0.00013698,2]
[346401003,1734940260825,-501.88135881,0.00013972,2]
[346401004,1734940260834,-1907.86642072,0.00014,2]
[346401086,1734941432893,-300.0,0.00012413,2]
[346401087,1734941432903,-300.0,0.00012538,2]
[346401088,1734941432912,-300.0,0.00012538,2]
[346401089,1734941432922,-16004.781325,0.00012539,2]
[346401090,1734941432931,-157.85378167,0.00013299,2]
[346401091,1734941432940,-460.46974099,0.00013299,2]
[346401092,1734941432949,-500.0,0.00013299,2]
[346401093,1734941432958,-387.42801801,0.00013299,2]
[346401094,1734941432967,-500.0,0.00013299,2]
[346401095,1734941432976,-500.0,0.00013299,2]
[346401096,1734941432985,-500.0,0.00013299,2]
[346401097,1734941432995,-274.30805574,0.00013299,2]
[346401098,1734941433004,-500.0,0.00013299,2]
[346401099,1734941433012,-539.91695622,0.00013299,2]
[346401100,1734941433022,-121860.04741487,0.000133,2]
[346401101,1734941433033,-639.30915827,0.000133,2]
[346401376,1734941439828,-74087.22626457,0.000133,2]
[346401378,1734941439838,-499.091,0.000133,2]
[346401380,1734941439847,-1786.91083204,0.00013461,2]
[346401382,1734941439856,-500.0,0.00013698,2]
[346401384,1734941439865,-500.0,0.00013698,2]
[346401386,1734941439876,-500.0,0.00013698,2]
[346401388,1734941439885,-500.0,0.00013698,2]
[346401390,1734941439894,-500.0,0.00013698,2]
[346401392,1734941439904,-500.0,0.00013698,2]
[346401394,1734941439913,-192.63204232,0.00013698,2]
[346401396,1734941439923,-500.0,0.00013698,2]
[346401398,1734941439931,-503.45182854,0.00013698,2]
[346401400,1734941439940,-500.0,0.00013698,2]
[346401402,1734941439950,-500.0,0.00013698,2]
[346401404,1734941439959,-500.0,0.00013698,2]
[346401406,1734941439968,-257.675931,0.00013698,2]
[346401408,1734941439977,-500.0,0.00013698,2]
[346401410,1734941439987,-500.0,0.00013698,2]
[346401411,1734941439997,-315.88,0.00013698,2]
[346401413,1734941440006,-500.0,0.00013698,2]
[346401415,1734941440015,-500.0,0.00013698,2]
[346401417,1734941440024,-500.0,0.00013698,2]
[346401418,1734941440034,-502.40851997,0.00013698,2]
[346401419,1734941440043,-435.16710381,0.00013698,2]
[346401420,1734941440052,-500.0,0.00013698,2]
[346401421,1734941440062,-500.0,0.00013698,2]
[346401422,1734941440072,-500.0,0.00013698,2]
[346401423,1734941440081,-574.57,0.00013698,2]
[346401424,1734941440090,-500.0,0.00013698,2]
[346401425,1734941440099,-500.0,0.00013698,2]
[346401426,1734941440108,-500.0,0.00013698,2]
[346401427,1734941440117,-500.0,0.00013698,2]
[346401428,1734941440126,-431.63173573,0.00013698,2]
[346401429,1734941440136,-500.0,0.00013698,2]
[346401430,1734941440145,-158.44,0.00013698,2]
[346401431,1734941440154,-500.0,0.00013698,2]
[346401432,1734941440163,-796.97,0.00013698,2]
[346401433,1734941440172,-500.0,0.00013698,2]
[346401434,1734941440181,-500.0,0.00013698,2]
[346401435,1734941440190,-500.0,0.00013698,2]
[346401436,1734941440199,-500.0,0.00013698,2]
[346401437,1734941440208,-228.38,0.00013698,2]
[346401439,1734941440217,-500.0,0.00013698,2]
[346401441,1734941440227,-500.0,0.00013698,2]
[346401443,1734941440236,-500.0,0.00013698,2]
[346401445,1734941440245,-500.0,0.00013698,2]
[346401447,1734941440255,-500.0,0.00013698,2]
[346401449,1734941440264,-752.6,0.00013698,2]
[346401451,1734941440275,-500.0,0.00013698,2]
[346401453,1734941440284,-958.66,0.00013698,2]
[346401455,1734941440293,-500.0,0.00013698,2]
[346401457,1734941440303,-500.0,0.00013698,2]
[346401459,1734941440312,-500.0,0.00013698,2]
[346401461,1734941440322,-500.0,0.00013698,2]
[346401463,1734941440331,-554.08,0.00013698,2]
[346401465,1734941440340,-500.0,0.00013698,2]
[346401467,1734941440349,-500.0,0.00013698,2]
[346401469,1734941440359,-500.0,0.00013698,2]
[346401471,1734941440368,-500.0,0.00013698,2]
[346401473,1734941440377,-500.0,0.00013698,2]
[346401475,1734941440387,-500.0,0.00013698,2]
[346401477,1734941440396,-500.0,0.00013698,2]
[346401479,1734941440406,-500.0,0.00013698,2]
[346401481,1734941440415,-500.0,0.00013698,2]
[346401483,1734941440424,-1235.08,0.00013698,2]
[346401485,1734941440433,-1385.16,0.00013698,2]
[346401487,1734941440443,-500.0,0.00013698,2]
[346401489,1734941440452,-168.0,0.00013698,2]
[346401491,1734941440462,-500.0,0.00013698,2]
[346401493,1734941440471,-673.75,0.00013698,2]
[346401495,1734941440480,-500.0,0.00013698,2]
[346401497,1734941440489,-500.0,0.00013698,2]
[346401499,1734941440499,-500.0,0.00013698,2]